bitfinex/quotes_SOLUSD_20240826
["timestamp","ask_amount","ask_price","bid_price","bid_amount"]
[1724645554335,6.6541,160.17,160.11,56.92633442]
[1724645554499,6.6541,160.17,160.12,20.0]
[1724645557240,6.6541,160.17,160.11,20.0]
[1724645557434,6.6541,160.17,160.09,20.0]
[1724645557737,6.6541,160.17,160.1,45.0]
[1724645558033,6.6541,160.17,160.11,20.0]
[1724645558736,6.6541,160.17,160.12,2.83240456]
[1724645558929,6.6541,160.17,160.11,22.83240456]
[1724645559325,6.6541,160.17,160.12,2.83240456]
[1724645559708,18.58043442,160.17,160.12,2.83240456]
[1724645560035,18.58043442,160.17,160.09,2.83295363]
[1724645560210,18.58043442,160.17,160.1,2.83295363]
[1724645560410,18.58043442,160.17,160.07,26.40319472]
[1724645560411,18.58043442,160.17,160.07,11.92633442]
[1724645560610,18.58043442,160.17,160.08,2.83364836]
[1724645560840,18.58043442,160.17,160.09,2.83364836]
[1724645561021,18.58043442,160.17,160.1,2.83364836]
[1724645561220,18.58043442,160.17,160.11,2.83364836]
[1724645561420,18.58043442,160.17,160.08,34.4804759]
[1724645561642,18.58043442,160.17,160.09,2.83356813]
[1724645561934,18.58043442,160.17,160.1,2.83356813]
[1724645562114,18.58043442,160.17,160.11,2.83356813]
[1724645562310,18.58043442,160.17,160.08,34.4804759]
[1724645562532,18.58043442,160.17,160.09,2.83359879]
[1724645562742,18.58043442,160.17,160.1,2.83359879]
[1724645562925,18.58043442,160.17,160.08,34.4804759]
[1724645562926,18.58043442,160.17,160.11,2.83359879]
[1724645563151,18.58043442,160.17,160.08,34.4804759]
[1724645563331,6.6541,160.17,160.09,2.83327435]
[1724645563533,18.58043442,160.17,160.1,2.83327435]
[1724645563729,18.58043442,160.17,160.1,20.0]
[1724645563931,18.58043442,160.17,160.11,2.83329966]
[1724645564215,18.58043442,160.17,160.1,20.0]
[1724645564442,18.58043442,160.17,160.11,2.83306934]
[1724645564742,18.58043442,160.17,160.12,2.83306934]
[1724645564940,18.58043442,160.17,160.1,28.29584052]
[1724645565246,18.58043442,160.17,160.11,2.83278319]
[1724645565425,18.58043442,160.17,160.12,2.83278319]
[1724645565626,18.58043442,160.17,160.1,28.29584052]
[1724645565829,18.58043442,160.17,160.11,2.83274431]
[1724645566153,18.58043442,160.17,160.12,2.83274431]
[1724645566445,18.58043442,160.17,160.1,28.29584052]
[1724645566613,18.58043442,160.17,160.11,2.832347]
[1724645566816,18.58043442,160.17,160.1,28.29584052]
[1724645566817,18.58043442,160.17,160.12,2.832347]
[1724645567037,18.58043442,160.17,160.1,28.29584052]
[1724645567220,18.58043442,160.17,160.11,2.83227676]
[1724645567429,18.58043442,160.17,160.12,2.83227676]
[1724645567642,18.58043442,160.17,160.1,28.29434808]
[1724645567945,18.58043442,160.17,160.11,2.83225913]
[1724645568126,18.58043442,160.17,160.12,2.83225913]
[1724645568331,18.58043442,160.17,160.1,28.29434808]
[1724645570733,18.58043442,160.17,160.1,28.2937565]
[1724645571842,6.6541,160.17,160.1,28.2937565]
[1724645572035,6.6541,160.17,160.11,8.2937565]
[1724645572353,6.6541,160.17,160.12,6.44006376]
[1724645572552,6.6541,160.17,160.13,6.44006376]
[1724645572724,6.6541,160.17,160.11,8.2937565]
[1724645572930,6.6541,160.17,160.12,6.44000568]
[1724645573153,6.6541,160.17,160.13,6.44000568]
[1724645573329,6.6541,160.17,160.11,8.2937565]
[1724645573530,6.6541,160.17,160.12,10.26202395]
[1724645573739,6.6541,160.17,160.13,10.26202395]
[1724645573939,6.6541,160.17,160.14,3.82189866]
[1724645574146,6.6541,160.17,160.12,6.44004965]
[1724645574447,6.6541,160.17,160.13,10.26184945]
[1724645574653,6.6541,160.17,160.14,3.8217998]
[1724645574833,6.6541,160.17,160.11,8.29387623]
[1724645577560,6.6541,160.17,160.11,8.29390173]
[1724645578171,6.6541,160.17,160.12,45.0]
[1724645578360,6.6541,160.17,160.12,65.0]
[1724645581132,6.6541,160.17,160.12,20.0]
[1724645581442,6.6541,160.17,160.1,28.29381743]
[1724645581753,6.6541,160.17,160.11,53.29381743]
[1724645582058,6.6541,160.17,160.12,28.29381743]
[1724645583057,6.6541,160.17,160.12,20.0]
[1724645583249,6.6541,160.17,160.11,28.29381743]
[1724645583452,6.6541,160.17,160.11,20.0]
[1724645583937,6.6541,160.17,160.1,20.0]
[1724645588256,6.6541,160.17,160.08,20.0]
[1724645588448,18.58043442,160.17,160.09,45.0]
[1724645588641,18.58043442,160.17,160.1,20.0]
[1724645589343,16.2385,160.16,160.1,20.0]
[1724645589656,16.2385,160.16,160.09,45.0]
[1724645589957,16.6187,160.14,160.06,11.92633442]
[1724645590346,11.92633442,160.13,160.03,6.50490346]
[1724645590656,11.92633442,160.13,160.0,6.06200821]
[1724645590860,11.92633442,160.13,160.01,6.50434607]
[1724645591261,11.92633442,160.13,160.03,11.92633442]
[1724645592040,11.92633442,160.13,160.04,20.8302845]
[1724645592739,11.92633442,160.13,160.05,45.0]
[1724645596153,11.92633442,160.13,160.06,1.24932643]
[1724645597573,11.92633442,160.09,160.05,1.24932568]
[1724645597755,11.92633442,160.09,160.04,0.8302845]
[1724645598070,33.53013442,160.11,160.04,0.8302845]
[1724645602258,33.53013442,160.11,160.04,2.07976038]
[1724645603558,33.53013442,160.11,160.04,0.8302845]
[1724645604064,33.53013442,160.11,160.04,2.07976158]
[1724645605281,33.53013442,160.11,160.04,0.8302845]
[1724645605663,33.53013442,160.11,160.04,2.0797625]
[1724645606651,33.53013442,160.11,160.04,2.07975822]
[1724645606857,33.53013442,160.11,160.04,0.8302845]
[1724645607064,33.53013442,160.11,160.04,2.0796961]
[1724645607466,33.53013442,160.11,160.04,0.8302845]
[1724645613374,33.53013442,160.11,160.05,1.25087626]
[1724645616890,33.53013442,160.11,160.04,0.8302845]
[1724645617487,33.53013442,160.11,160.04,2.08116058]
[1724645618072,33.53013442,160.11,160.05,1.25087608]
[1724645618699,15.4196,160.11,160.05,13.1772105]
[1724645618879,15.4196,160.11,160.06,66.25087608]
[1724645619082,15.4196,160.11,160.07,1.25087608]
[1724645619873,15.4196,160.11,160.07,13.1772105]
[1724645620080,15.4196,160.11,160.08,65.0]
[1724645620270,15.4196,160.11,160.08,66.25056125]
[1724645620474,15.4196,160.11,160.09,1.25056125]
[1724645621881,15.4196,160.11,160.1,1.25056125]
[1724645622088,15.4196,160.11,160.09,1.25056125]
[1724645622363,15.4196,160.11,160.1,1.25056125]
[1724645622589,15.4196,160.11,160.09,1.25056125]
[1724645622785,15.4196,160.11,160.1,1.25056125]
[1724645622973,15.4196,160.11,160.09,1.25056125]
[1724645623179,15.4196,160.11,160.1,1.25056125]
[1724645623367,15.4196,160.11,160.09,1.25056125]
[1724645623567,15.4196,160.11,160.1,1.25056125]
[1724645623788,15.4196,160.11,160.09,1.25056125]
[1724645623996,15.4196,160.11,160.1,1.25056125]
[1724645624179,15.4196,160.11,160.09,1.25056125]
[1724645624380,15.4196,160.11,160.1,1.25056125]
[1724645624568,15.4196,160.11,160.09,1.25056125]
[1724645624767,15.4196,160.11,160.1,1.25056125]
[1724645624969,15.4196,160.11,160.09,1.25056125]
[1724645625177,15.4196,160.11,160.1,1.25056125]
[1724645625373,15.4196,160.11,160.09,1.25056125]
[1724645625577,15.4196,160.11,160.1,1.25056125]
[1724645625891,15.4196,160.11,160.09,1.25056125]
[1724645626083,15.4196,160.11,160.1,1.25056125]
[1724645626393,15.4196,160.11,160.09,1.25056125]
[1724645626597,15.4196,160.11,160.08,65.0]
[1724645626598,15.4196,160.11,160.1,1.25056125]
[1724645626772,15.4196,160.11,160.09,1.25056125]
[1724645626970,15.4196,160.11,160.1,1.25056125]
[1724645627177,15.4196,160.11,160.09,1.25056125]
[1724645627498,15.4196,160.11,160.1,1.25056125]
[1724645627806,15.4196,160.11,160.08,65.0]
[1724645627807,22.0121,160.15,160.09,1.25056125]
[1724645628004,22.0121,160.15,160.1,1.25056125]
[1724645628303,22.0121,160.15,160.09,11.92633442]
[1724645628486,15.91,160.15,160.1,1.25051879]
[1724645628807,15.91,160.15,160.11,14.42574477]
[1724645628980,15.91,160.15,160.11,13.17522598]
[1724645629685,15.91,160.15,160.11,11.92633442]
[1724645629978,15.91,160.15,160.11,13.17683457]
[1724645632089,15.91,160.15,160.11,11.92633442]
[1724645632401,15.91,160.15,160.11,13.17684319]
[1724645633308,15.91,160.15,160.11,11.92633442]
[1724645638510,15.91,160.15,160.11,17.000892]
[1724645638733,6.49933138,160.24,160.14,67.70533768]
[1724645638895,16.2347,160.28,160.16,28.11906489]
[1724645639087,16.2347,160.28,160.25,11.92633442]
[1724645639305,22.6061,160.32,160.26,1.24780453]
[1724645639916,22.6061,160.32,160.27,11.92633442]
[1724645640089,22.6061,160.32,160.27,13.17402811]
[1724645640284,22.6061,160.32,160.27,11.92633442]
[1724645641213,22.6061,160.32,160.26,11.92633442]
[1724645641918,22.6061,160.32,160.27,1.24769608]
[1724645642088,22.6061,160.32,160.26,11.92633442]
[1724645643890,0.0737086,160.28,160.26,11.92633442]
[1724645644094,0.0737086,160.28,160.27,1.24769683]
[1724645644495,22.6061,160.32,160.27,1.24769683]
[1724645644814,22.6061,160.32,160.21,3.81369777]
[1724645645008,22.6061,160.32,160.23,11.92633442]
[1724645646000,11.92633442,160.31,160.23,11.92633442]
[1724645646798,11.92633442,160.31,160.22,11.92633442]
[1724645647102,11.92633442,160.31,160.23,20.0]
[1724645648715,22.6061,160.32,160.23,20.0]
[1724645649013,22.6061,160.32,160.24,11.92633442]
[1724645650989,22.6061,160.32,160.23,20.0]
[1724645652402,11.92633442,160.31,160.23,20.0]
[1724645655501,11.92633442,160.28,160.17,6.88052014]
[1724645655727,16.4331,160.25,160.16,21.9359]
[1724645655903,11.92633442,160.24,160.15,11.92633442]
[1724645656119,11.92633442,160.24,160.14,2.35825137]
[1724645656316,11.92633442,160.24,160.13,11.92633442]
[1724645657332,11.92633442,160.24,160.12,29.55002014]
[1724645657629,11.92633442,160.22,160.12,24.85405456]
[1724645657924,11.92633442,160.22,160.12,17.97353442]
[1724645658803,11.92633442,160.22,160.13,65.0]
[1724645659315,11.92633442,160.22,160.13,76.92633442]
[1724645661533,29.0246,160.25,160.13,76.92633442]
[1724645661705,11.92633442,160.23,160.13,76.92633442]
[1724645663610,11.92633442,160.23,160.14,1.24847154]
[1724645663826,11.92633442,160.23,160.15,13.17471652]
[1724645664016,11.92633442,160.23,160.16,65.0]
[1724645665002,11.92633442,160.23,160.17,1.24839048]
[1724645665233,34.71063442,160.25,160.17,1.24839048]
[1724645666226,22.7843,160.25,160.18,1.24839081]
[1724645666433,34.71063442,160.25,160.18,1.24839081]
[1724645666740,34.71063442,160.25,160.16,65.0]
[1724645667606,34.71063442,160.25,160.17,13.17457881]
[1724645667807,34.71063442,160.25,160.18,45.0]
[1724645668226,22.7843,160.25,160.19,1.24823349]
[1724645668934,16.4331,160.25,160.19,1.24823349]
[1724645669239,16.4331,160.25,160.19,21.24823349]
[1724645669903,16.4331,160.25,160.19,33.17456791]
[1724645670107,16.4331,160.25,160.2,45.0]
[1724645670316,16.4331,160.25,160.21,1.2480101]
[1724645670536,33.46693442,160.29,160.21,21.2480101]
[1724645670718,33.46693442,160.29,160.22,45.0]
[1724645670924,33.46693442,160.29,160.23,1.24793958]
[1724645671228,33.46693442,160.29,160.22,45.0]
[1724645676635,21.5406,160.29,160.22,45.0]
[1724645678115,15.1894,160.29,160.22,45.0]
[1724645678427,6.5801,160.33,160.22,45.0]
[1724645678428,22.5033,160.33,160.24,11.92633442]
[1724645678631,28.7405,160.33,160.24,11.92633442]
[1724645678833,11.92633442,160.32,160.22,56.92633442]
[1724645679015,11.92633442,160.32,160.23,20.0]
[1724645679216,15.9232,160.33,160.27,11.92633442]
[1724645679428,15.9232,160.33,160.28,1.24758035]
[1724645679825,15.9232,160.33,160.28,46.24758035]
[1724645682136,6.5801,160.37,160.28,46.24758035]
[1724645683046,28.46103442,160.38,160.29,31.92633442]
[1724645683278,28.46103442,160.38,160.3,45.0]
[1724645683735,28.46103442,160.38,160.29,20.0]
[1724645684051,34.69623442,160.38,160.28,20.0]
[1724645684852,34.69623442,160.38,160.29,1.24749943]
[1724645685518,34.69623442,160.38,160.28,20.0]
[1724645688058,34.53139892,160.38,160.28,20.0]
[1724645688352,34.53139892,160.38,160.29,1.24749163]
[1724645688738,34.53139892,160.38,160.28,20.0]
[1724645695665,34.53139892,160.38,160.29,45.0]
[1724645695844,28.29619892,160.38,160.29,56.92633442]
[1724645700664,28.29619892,160.38,160.3,1.24736426]
[1724645701369,28.29619892,160.38,160.31,11.92633442]
[1724645701370,16.3698645,160.38,160.31,11.92633442]
[1724645701547,16.3698645,160.38,160.32,46.24716005]
[1724645701747,16.3698645,160.38,160.33,1.24716005]
[1724645701971,16.3698645,160.38,160.32,45.0]
[1724645702976,16.3698645,160.38,160.28,20.0]
[1724645703174,28.29619892,160.38,160.28,31.92633442]
[1724645703854,34.53139892,160.38,160.28,31.92633442]
[1724645704776,34.53139892,160.38,160.29,45.0]
[1724645706078,11.92633442,160.36,160.28,20.0]
[1724645706281,6.4809,160.35,160.25,31.92633442]
[1724645706454,6.4809,160.35,160.26,1.56156204]
[1724645707277,12.7172,160.35,160.26,1.56156204]
[1724645707584,15.2425,160.34,160.26,46.56156204]
[1724645707880,15.2425,160.34,160.27,20.0]
[1724645708302,27.16883442,160.34,160.28,1.24758169]
[1724645708480,27.16883442,160.34,160.21,8.99187778]
[1724645708481,11.92633442,160.32,160.25,2.80929718]
[1724645708786,11.92633442,160.32,160.25,1.24770201]
[1724645709083,11.92633442,160.26,160.21,15.75889473]
[1724645709295,11.92633442,160.24,160.22,1.56207743]
[1724645709459,11.92633442,160.24,160.17,1.24968953]
[1724645709658,11.92633442,160.24,160.18,1.56211213]
[1724645709855,15.2145,160.25,160.17,1.24968953]
[1724645710082,15.2145,160.25,160.18,13.17458162]
[1724645710292,15.2145,160.25,160.19,5.07034616]
[1724645710463,15.2145,160.25,160.2,1.24809088]
[1724645710664,15.2145,160.25,160.21,1.24812794]
[1724645711671,15.2145,160.25,160.2,46.24812792]
[1724645712179,15.2145,160.25,160.2,1.24812792]
[1724645712484,15.2145,160.25,160.2,6.3190171]
[1724645712692,15.2145,160.25,160.2,1.24970312]
[1724645712889,15.2145,160.25,160.2,5.07206381]
[1724645713060,15.2145,160.25,160.19,45.0]
[1724645713260,15.2145,160.25,160.2,3.82282709]
[1724645713481,15.2145,160.25,160.2,3.82275737]
[1724645713670,15.2145,160.25,160.23,0.31]
[1724645714155,27.14083442,160.25,160.23,0.31]
[1724645720670,11.92633442,160.2,160.12,6.44392786]
[1724645720881,11.92633442,160.2,160.11,22.88624981]
[1724645721182,11.92633442,160.2,160.12,1.25020477]
[1724645722292,11.92633442,160.2,160.12,66.25020477]
[1724645722491,11.92633442,160.2,160.12,20.0]
[1724645723887,11.92633442,160.2,160.13,45.0]
[1724645724770,16.1459,160.19,160.13,45.0]
[1724645728568,16.1459,160.19,160.14,13.17485542]
[1724645728768,16.1459,160.19,160.15,46.24850049]
[1724645729681,21.8643,160.23,160.15,46.24850049]
[1724645729876,21.8643,160.23,160.15,45.0]
[1724645731216,15.7938,160.23,160.16,31.92633442]
[1724645731371,15.7938,160.23,160.17,45.0]
[1724645732101,15.7938,160.23,160.18,11.92633442]
[1724645732287,22.4253,160.27,160.2,11.92633442]
[1724645732477,22.4253,160.27,160.21,46.2480387]
[1724645732670,22.4253,160.27,160.21,45.0]
[1724645734173,22.4253,160.27,160.19,20.0]
[1724645734371,22.4253,160.27,160.17,11.92633442]
[1724645734372,11.92633442,160.26,160.17,11.92633442]
[1724645734601,11.92633442,160.26,160.18,65.0]
[1724645735580,22.4253,160.27,160.18,65.0]
[1724645735807,22.4253,160.27,160.19,11.92633442]
[1724645736101,22.4253,160.27,160.2,45.0]
[1724645736676,22.4253,160.27,160.21,1.24807672]
[1724645737600,15.7938,160.27,160.21,11.92633442]
[1724645737801,15.7938,160.27,160.22,46.24793266]
[1724645739292,11.92633442,160.3,160.22,46.24793266]
[1724645739597,22.6849,160.31,160.23,31.92633442]
[1724645739813,22.6849,160.31,160.24,46.24772505]
[1724645743094,22.6849,160.31,160.24,45.0]
[1724645743316,34.61123442,160.31,160.24,45.0]
[1724645746588,34.61123442,160.31,160.23,20.0]
[1724645746589,11.92633442,160.29,160.23,20.0]
[1724645746795,11.92633442,160.29,160.19,27.67023442]
[1724645747100,11.92633442,160.29,160.19,11.92633442]
[1724645748179,11.92633442,160.29,160.18,1.24954518]
[1724645748180,11.92633442,160.29,160.2,20.0]
[1724645748383,11.92633442,160.29,160.21,45.0]
[1724645748601,11.92633442,160.29,160.2,45.0]
[1724645748913,11.92633442,160.29,160.21,19.9262914]
[1724645749091,11.92633442,160.29,160.22,45.0]
[1724645751214,11.92633442,160.27,160.22,45.0]
[1724645757925,6.2387,160.29,160.22,45.0]
[1724645758232,18.16503442,160.29,160.21,45.0]
[1724645760731,11.92633442,160.28,160.21,45.0]
[1724645763818,15.1171,160.27,160.21,45.0]
[1724645764199,15.1171,160.27,160.2,45.0]
[1724645769841,15.1171,160.27,160.21,1.56209033]
[1724645770129,15.1171,160.27,160.22,1.56209033]
[1724645770329,15.1171,160.27,160.23,1.56210123]
[1724645770631,15.1171,160.27,160.2,45.0]
[1724645770839,15.1171,160.27,160.21,1.56211384]
[1724645771010,15.1171,160.27,160.2,45.0]
[1724645771011,15.1171,160.27,160.22,1.56211384]
[1724645771213,15.1171,160.27,160.23,1.56211384]
[1724645771535,15.1171,160.27,160.2,45.0]
[1724645771720,15.1171,160.27,160.21,1.24968358]
[1724645772023,15.1171,160.27,160.22,1.56209906]
[1724645772339,15.1171,160.27,160.23,1.56209906]
[1724645772519,15.1171,160.27,160.21,1.24968358]
[1724645772713,15.1171,160.27,160.2,45.0]
[1724645772936,15.1171,160.27,160.21,1.24966125]
[1724645773107,15.1171,160.27,160.2,45.0]
[1724645773306,15.1171,160.27,160.21,1.24966125]
[1724645773516,15.1171,160.27,160.22,1.24966125]
[1724645773716,15.1171,160.27,160.21,1.24966125]
[1724645773927,27.04343442,160.27,160.2,45.0]
[1724645774134,27.04343442,160.27,160.21,1.24970784]
[1724645774403,27.04343442,160.27,160.22,1.24970119]
[1724645774635,27.04343442,160.27,160.18,1.24974419]
[1724645774636,11.92633442,160.25,160.18,1.24974419]
[1724645774812,11.92633442,160.25,160.19,1.2499113]
[1724645775007,11.92633442,160.25,160.2,1.2499113]
[1724645775307,11.92633442,160.25,160.15,34.17314228]
[1724645775508,11.92633442,160.25,160.16,1.24985442]
[1724645775809,11.92633442,160.25,160.17,1.24985442]
[1724645776021,11.92633442,160.25,160.18,1.24985442]
[1724645776206,15.1171,160.27,160.19,1.24985442]
[1724645776405,15.1171,160.27,160.2,2.49801248]
[1724645776603,15.1171,160.27,160.21,2.49787618]
[1724645776821,15.1171,160.27,160.22,1.24985442]
[1724645777024,15.1171,160.27,160.23,1.24801885]
[1724645778045,15.1171,160.27,160.22,1.2480203]
[1724645778458,15.1171,160.27,160.23,1.24967518]
[1724645778764,15.1171,160.27,160.22,46.2480203]
[1724645778959,15.1171,160.27,160.23,1.24967526]
[1724645779146,15.1171,160.27,160.23,1.24803406]
[1724645779531,15.1171,160.27,160.22,45.0]
[1724645779834,15.1171,160.27,160.23,1.24968624]
[1724645780146,15.1171,160.27,160.22,45.0]
[1724645781459,21.3566,160.27,160.19,11.92633442]
[1724645781753,11.92633442,160.26,160.2,49.07962801]
[1724645781951,11.92633442,160.26,160.21,1.24974721]
[1724645782132,11.92633442,160.26,160.22,1.24974721]
[1724645782333,11.92633442,160.26,160.2,45.0]
[1724645782532,11.92633442,160.26,160.21,1.24975368]
[1724645782727,11.92633442,160.26,160.22,1.24975368]
[1724645783053,11.92633442,160.26,160.2,45.0]
[1724645783230,11.92633442,160.26,160.21,1.24975368]
[1724645783431,11.92633442,160.26,160.22,1.24975368]
[1724645783731,11.92633442,160.26,160.2,45.0]
[1724645784060,11.92633442,160.26,160.21,1.24974685]
[1724645784227,11.92633442,160.26,160.22,1.24974685]
[1724645784429,11.92633442,160.26,160.2,45.0]
[1724645785061,11.92633442,160.26,160.21,1.24974613]
[1724645785358,11.92633442,160.26,160.22,1.24974613]
[1724645785541,11.92633442,160.26,160.2,45.0]
[1724645785726,11.92633442,160.26,160.21,1.24975368]
[1724645785933,11.92633442,160.26,160.22,1.24975368]
[1724645786133,11.92633442,160.26,160.2,45.0]
[1724645786341,11.92633442,160.26,160.21,1.24975368]
[1724645786540,11.92633442,160.26,160.22,1.24975368]
[1724645786749,11.92633442,160.26,160.2,45.0]
[1724645786950,11.92633442,160.26,160.21,1.24975368]
[1724645787148,11.92633442,160.26,160.22,1.24975368]
[1724645787354,11.92633442,160.26,160.2,45.0]
[1724645787655,11.92633442,160.26,160.21,1.24975368]
[1724645787834,11.92633442,160.26,160.22,1.24975368]
[1724645788059,11.92633442,160.26,160.2,45.0]
[1724645788238,11.92633442,160.26,160.21,1.24975332]
[1724645788436,11.92633442,160.26,160.22,1.24975332]
[1724645788658,11.92633442,160.26,160.21,5.66344425]
[1724645789354,11.92633442,160.26,160.21,2.83164891]
[1724645792437,11.92633442,160.26,160.22,2.83348876]
[1724645792665,11.92633442,160.26,160.21,2.83164891]
[1724645792844,11.92633442,160.26,160.22,2.83356302]
[1724645793046,11.92633442,160.26,160.21,2.83164891]
[1724645793245,11.92633442,160.26,160.22,2.83353715]
[1724645793446,11.92633442,160.26,160.21,2.83164891]
[1724645793638,11.92633442,160.26,160.22,2.83345941]
[1724645793841,11.92633442,160.26,160.21,2.83164891]
[1724645794962,11.92633442,160.26,160.2,45.0]
[1724645798967,11.92633442,160.26,160.21,1.24817286]
[1724645800369,15.1171,160.27,160.21,1.24817286]
[1724645801079,11.92633442,160.26,160.2,45.0]
[1724645805162,11.92633442,160.24,160.15,2.35431762]
[1724645805467,11.92633442,160.24,160.15,11.92633442]
[1724645805666,11.92633442,160.24,160.16,45.0]
[1724645807169,11.92633442,160.24,160.11,15.3436]
[1724645807170,11.92633442,160.2,160.11,11.92633442]
[1724645808967,11.92633442,160.2,160.12,20.0]
[1724645809354,11.92633442,160.2,160.17,6.243]
[1724645810896,11.92633442,160.2,160.16,6.2437]
[1724645812147,15.4476,160.19,160.15,6.244]
[1724645814381,15.4476,160.19,160.16,6.2437]
[1724645814772,15.4476,160.19,160.18,6.2429]
[1724645817598,16.6109,160.23,160.22,6.2414]
[1724645821404,16.0286,160.27,160.2,11.92633442]
[1724645821565,16.0286,160.27,160.21,46.24794982]
[1724645822202,16.0286,160.27,160.21,45.0]
[1724645822588,16.0286,160.27,160.22,1.24794999]
[1724645822787,16.0286,160.27,160.21,45.0]
[1724645832787,16.0286,160.27,160.22,1.56202737]
[1724645832987,15.1737,160.31,160.26,11.92633442]
[1724645833299,6.3229,160.34,160.27,47.80961753]
[1724645833498,15.1737,160.35,160.3,11.92633442]
[1724645833718,15.1737,160.4,160.31,46.24731149]
[1724645834017,15.1737,160.4,160.32,13.48753563]
[1724645834205,15.1737,160.4,160.33,46.24716755]
[1724645835111,11.92633442,160.39,160.27,6.0379]
[1724645835287,11.92633442,160.37,160.28,66.56124503]
[1724645835488,11.92633442,160.37,160.28,65.0]
[1724645836304,11.92633442,160.35,160.28,65.0]
[1724645841423,11.92633442,160.35,160.29,1.24747309]
[1724645841942,15.1737,160.4,160.29,11.92633442]
[1724645842226,27.10003442,160.4,160.31,11.92633442]
[1724645842394,27.10003442,160.4,160.32,45.0]
[1724645842601,27.10003442,160.4,160.33,1.24718191]
[1724645843410,33.33443442,160.4,160.32,45.0]
[1724645843618,21.4081,160.4,160.32,45.0]
[1724645843924,33.33443442,160.4,160.32,45.0]
[1724645844124,15.1737,160.4,160.32,45.0]
[1724645844333,15.1737,160.4,160.33,13.17351791]
[1724645844502,15.1737,160.4,160.34,45.0]
[1724645844696,15.1737,160.4,160.35,1.24709125]
[1724645845301,27.10003442,160.4,160.34,45.0]
[1724645847423,15.1737,160.4,160.34,45.0]
[1724645847726,15.1737,160.4,160.35,1.24711443]
[1724645850712,15.1737,160.4,160.34,45.0]
[1724645851421,15.1737,160.4,160.35,1.24698079]
[1724645852415,15.1737,160.4,160.36,1.24699354]
[1724645853015,6.258,160.46,160.36,1.24699354]
[1724645853016,15.9512,160.45,160.36,1.24699354]
[1724645853213,22.1838,160.45,160.36,45.0]
[1724645853436,6.2329,160.44,160.36,45.0]
[1724645853826,6.2329,160.44,160.37,1.24683572]
[1724645854927,6.2329,160.44,160.36,45.0]
[1724645857714,6.2329,160.44,160.37,1.24683664]
[1724645858035,15.9512,160.45,160.39,11.92633442]
[1724645858212,15.9512,160.45,160.4,46.24665612]
[1724645859209,15.9512,160.45,160.41,1.24666894]
[1724645863920,15.9512,160.45,160.4,45.0]
[1724645866124,15.9512,160.45,160.41,1.24661766]
[1724645866746,6.2317,160.47,160.41,1.24662042]
[1724645867046,6.2317,160.47,160.4,45.0]
[1724645867242,11.92633442,160.46,160.4,45.0]
[1724645868144,18.15843442,160.46,160.4,45.0]
[1724645877060,6.2321,160.46,160.4,45.0]
[1724645877233,18.15843442,160.46,160.4,45.0]
[1724645879258,11.92633442,160.44,160.4,45.0]
[1724645880740,11.92633442,160.42,160.34,6.5293]
[1724645881043,47.70533768,160.48,160.35,1.56079765]
[1724645881044,11.92633442,160.4,160.35,1.56079765]
[1724645881232,11.92633442,160.4,160.34,6.5293]
[1724645881431,11.92633442,160.4,160.34,8.09026035]
[1724645881729,11.92633442,160.4,160.34,8.09027804]
[1724645882153,11.92633442,160.42,160.34,8.09027804]
[1724645882363,11.92633442,160.42,160.34,6.5293]
[1724645883136,11.92633442,160.42,160.35,45.0]
[1724645883648,18.16003442,160.42,160.35,45.0]
[1724645887238,18.16003442,160.42,160.36,1.56096616]
[1724645887457,18.16003442,160.42,160.35,45.0]
[1724645888470,18.16003442,160.42,160.36,1.56098236]
[1724645888668,18.16003442,160.42,160.35,45.0]
[1724645888850,18.16003442,160.42,160.36,1.56099612]
[1724645889041,18.16003442,160.42,160.35,45.0]
[1724645889245,18.16003442,160.42,160.36,1.56099042]
[1724645889468,18.16003442,160.42,160.35,45.0]
[1724645889762,18.16003442,160.42,160.36,1.56098236]
[1724645889962,18.16003442,160.42,160.35,45.0]
[1724645890267,18.16003442,160.42,160.36,1.56098214]
[1724645890268,11.92633442,160.42,160.36,1.56098214]
[1724645890440,18.16073442,160.4,160.35,45.0]
[1724645890872,11.92633442,160.4,160.35,45.0]
[1724645891966,11.92633442,160.4,160.36,1.56103133]
[1724645892280,11.92633442,160.4,160.35,45.0]
[1724645892854,18.16073442,160.4,160.35,45.0]
[1724645893256,11.92633442,160.4,160.35,45.0]